Cogmind - Beta 10.2 @@@ ROGUE MODE // 2021.09.02 @ 15:27:10 Player: Cracklepappy Result: Destroyed by 12-ASH with 12-ASH's Boomstick Performance ------------- Evolutions (1) 500 Regions Visited (6) 1200 Robots Destroyed (59) 295 Value Destroyed (1358) 1358 Prototype IDs (32) 640 Alien Tech Used (0) 0 Bonus (311) 311 TOTAL SCORE: 4304 Bonus ------- High Alert Combat Kills 11 Aligned with FarCom 300 Cogmind --------- Core Integrity 0/400 Matter 228/300 Energy 280/280 System Corruption 1% Temperature Cool (0) Movement Treading (280) Ox6 Location -8/Mines Parts ------- > --- POWER (1) -------- Heavy Ion Engine > --- PROPULSION (2) --- Light Treads > --- UTILITY (4) ------ High-capacity Storage Unit Humpback > --- WEAPON (2) ------- Shotgun Shotgun > --- INVENTORY (32) --- Heavy Ion Engine Flexi-carbon Leg Experimental Heat Sink Medium Storage Unit Large Storage Unit Large Storage Unit Large Storage Unit Large Storage Unit Large Storage Unit High-capacity Storage Unit High-capacity Storage Unit High-capacity Storage Unit Humpback High-capacity Battery (400) Medium Matter Pod (0) Large Matter Pod (32) Large Matter Pod (0) Large Matter Pod (0) Structural Scanner Long-range Sensor Array Signal Interpreter Light Armor Plating Improved Trap Extractor EMP Blaster Rocket Launcher Rocket Launcher Datajack Peak State ------------ > --- POWER ------------ Heavy Ion Engine > --- PROPULSION ------- Light Treads Light Treads > --- UTILITY ---------- Large Storage Unit Large Storage Unit High-capacity Storage Unit Improved Trap Extractor > --- WEAPON ----------- Shotgun Shotgun > --- INVENTORY -------- Heavy Ion Engine Heavy Ion Engine Light Treads Light Treads Light Treads Light Treads Flexi-carbon Leg Medium Storage Unit High-capacity Storage Unit Medium Matter Pod Structural Scanner Signal Interpreter Light Armor Plating Light Armor Plating Medium Armor Plating Heavy Assault Rifle Heavy Assault Rifle Shotgun Shotgun Shotgun EMP Blaster Rocket Launcher Rocket Launcher Datajack [Rating: 20] Favorites ----------- Power Heavy Ion Engine Engine Heavy Ion Engine Propulsion Light Treads Treads Light Treads Wheel Wheel Utility High-capacity Storage Unit Device Structural Scanner Storage High-capacity Storage Unit Protection Medium Armor Plating Weapon Shotgun Energy Gun Medium Laser Ballistic Gun Shotgun Launcher Rocket Launcher Special Melee Weapon Datajack Build | -11 -10 -10 -9 -9 -9 -8 ------- Run | Scr Mat Min Mat Min Exi Min Slots Evolved 2 | . . . 2 . . . Power . | . . . . . . . Propulsion . | . . . . . . . Utility 2 | . . . 2 . . . Weapon . | . . . . . . . Parts Attached 60 | 9 7 2 17 5 18 2 Power 5 | 1 1 . 2 . 1 . Engine 5 | 1 1 . 2 . 1 . Core . | . . . . . . . Reactor . | . . . . . . . Propulsion 11 | 2 2 1 2 1 3 . Treads 10 | 1 2 1 2 1 3 . Leg . | . . . . . . . Wheel 1 | 1 . . . . . . Hover . | . . . . . . . Flight . | . . . . . . . Utility 22 | 3 3 . 8 3 5 . Device 7 | 2 1 . 2 2 . . Storage 9 | 1 2 . 3 . 3 . Processor . | . . . . . . . Hackware . | . . . . . . . Protection 6 | . . . 3 1 2 . Artifact . | . . . . . . . Weapon 22 | 3 1 1 5 1 9 2 Energy Gun 2 | 2 . . . . . . Energy Cannon . | . . . . . . . Ballistic Gun 14 | 1 1 1 3 1 5 2 Ballistic Cannon . | . . . . . . . Launcher 5 | . . . 2 . 3 . Special Weapon . | . . . . . . . Impact Weapon . | . . . . . . . Slashing Weapon . | . . . . . . . Piercing Weapon . | . . . . . . . Special Melee Weapon 1 | . . . . . 1 . Unidentified Prototypes 1 | . . . 1 . . . Parts Lost 16 | . 1 1 2 1 7 4 Power 2 | . 1 . . . 1 . Propulsion 5 | . . 1 . . 3 1 Utility 3 | . . . 1 . 1 1 Weapon 6 | . . . 1 1 2 2 Highest Loss Streak 6 | . 1 1 1 1 6 4 Average Slot Usage (%) 95 | . 99 99 96 100 89 77 Engine 11 | . 13 14 11 11 11 11 Treads 23 | . 27 27 22 22 21 18 Device 3 | . 8 . 10 4 . . Storage 25 | . 19 28 25 33 23 22 Protection 5 | . . . 4 6 10 7 Energy Gun 1 | . 7 . . . . . Ballistic Gun 21 | . 20 28 21 22 17 18 Launcher 1 | . . . . . 3 . Naked Turns . | . . . . . . . Heaviest Build 135 | 12 56 57 85 85 135 126 Greatest Support 40 | 10 40 40 40 40 40 40 Greatest Overweight (x) 3 | 1 1 1 2 2 3 3 Average Overweight (x) 1 | . . 1 1 1 2 3 Largest Inventory Capacity 40 | 6 18 18 24 24 40 32 Average Capacity 22 | 5 12 18 19 24 30 32 Most Carried 32 | 6 17 18 24 24 32 30 Average Carried 20 | 4 10 17 19 23 26 29 Final Capacity 32 | 6 18 18 24 24 32 32 Final Carried 30 | 5 17 18 24 23 30 28 Class Distribution -------------------- 56% | Hauler-Mutant 43% | Mutant Dominant Class ---------------- Mutant | -10/Materials Mutant | -10/Mines Mutant | -9/Materials Hauler-Mutant | -9/Mines Hauler-Mutant | -9/Exiles Hauler-Mutant | -8/Mines Resources | -11 -10 -10 -9 -9 -9 -8 ----------- Run | Scr Mat Min Mat Min Exi Min Matter Collected 2228 | 299 218 261 540 270 640 . Remotely 108 | 108 . . . . . . Salvage Created 1889 | 91 465 131 864 260 78 . Parts 122 | 3 34 7 57 20 1 . Haulers Intercepted 3 | . 1 . 2 . . . Recyclers Shooed 5 | 1 1 . 2 1 . . Parts Field Recycled . | . . . . . . . Retrieved Matter . | . . . . . . . Parts Self-Destructed . | . . . . . . . Prevented . | . . . . . . . Kills | -11 -10 -10 -9 -9 -9 -8 ------- Run | Scr Mat Min Mat Min Exi Min Combat Hostiles Destroyed 49 | . 11 6 19 9 4 . Guns 40 | . 11 6 13 9 1 . AOE 9 | . . . 6 . 3 . Classes Destroyed 11 | 2 4 2 3 . . . Worker 3 | . . . 3 . . . Tunneler 1 | 1 . . . . . . Hauler 3 | . 1 . 2 . . . Recycler 3 | 1 . 1 1 . . . Watcher 4 | . 2 . 2 . . . Swarmer 15 | . 3 4 4 4 . . Grunt 22 | . 8 . 10 4 . . Brawler 2 | . . . 1 1 . . Sentry 4 | . . . 4 . . . Demolisher 1 | . . 1 . . . . Assembled 4 | . . 1 . . 3 . Best Kill Streak 8 | 2 4 3 8 3 3 . Combat Bots Only 8 | . 3 3 8 3 3 . Max Kills in Single Turn 3 | 1 1 1 3 1 2 . Gunslinging . | . . . . . . . Exploded 2 | . . . 1 . 2 . Melee . | . . . . . . . Uniques/NPCs Destroyed 1 | . . . . . 1 . 8R-AWN (-9/Exiles) Combat | -11 -10 -10 -9 -9 -9 -8 -------- Run | Scr Mat Min Mat Min Exi Min Damage Taken 3532 | . 433 219 532 293 1281 774 Core 504 | . 93 6 37 32 205 131 Absorbed by Shields . | . . . . . . . Core Remaining (%) 80 | 100 . 60 . . . . Volleys Fired 214 | 3 48 12 56 22 64 9 Largest 2 | 2 2 2 2 2 2 2 Hottest 70 | 70 70 46 46 46 66 46 Shots Fired 412 | 6 94 24 106 43 121 18 Gun 399 | 6 94 24 100 43 114 18 Cannon . | . . . . . . . Launcher 13 | . . . 6 . 7 . Special . | . . . . . . . Kinetic 365 | 3 63 24 100 43 114 18 Thermal 34 | 3 31 . . . . . Explosive 9 | . . . 2 . 7 . Electromagnetic 4 | . . . 4 . . . Robot Hit Streak 18 | 3 8 6 14 6 18 7 Robot Miss Streak 7 | 1 3 6 3 7 2 4 Penetration Max . | . . . . . . . Secondary Targets 1 | . . . . 1 . . Max Gunslinging Chain 1 | . . . . 1 . . Shots Hit Robots 310 | 4 68 16 88 27 92 15 Core Hits 134 | 3 26 9 49 17 21 9 Critical Hits 5 | . . . 3 1 1 . Critical Kills 1 | . . . 1 . . . Critical Parts Destroyed 3 | . . . 2 1 . . Melee Attacks 1 | . . . . . 1 . Impact . | . . . . . . . Slashing . | . . . . . . . Piercing . | . . . . . . . Sneak Attacks 1 | . . . . . 1 . Combat Hostiles . | . . . . . . . Follow-up Attacks . | . . . . . . . Damage Inflicted 4963 | 51 884 167 1819 344 1482 216 Guns 4066 | 51 866 159 1144 317 1313 216 Cannons . | . . . . . . . Explosions 820 | . . . 651 . 169 . Melee . | . . . . . . . Ramming 77 | . 18 8 24 27 . . Kinetic 3704 | 14 541 159 1144 317 1313 216 Thermal 362 | 37 325 . . . . . Explosive 624 | . . . 455 . 169 . Electromagnetic 196 | . . . 196 . . . Impact . | . . . . . . . Slashing . | . . . . . . . Piercing . | . . . . . . . Highest Corruption 1 | . 1 1 . 1 1 1 Average Corruption 1 | . 1 1 . 1 1 1 Corruption Purged . | . . . . . . . Effects 29 | . . 6 . 2 20 1 Message Errors 11 | . . 2 . 1 7 1 Energy Discharges 6 | . . 2 . . 4 . Data Loss (minor) 9 | . . 2 . . 7 . Targeting Errors 2 | . . . . 1 1 . Weapon Failures 1 | . . . . . 1 . Overload Shots . | . . . . . . . Overflow Damage 84 | . . . 84 . . . Projectiles . | . . . . . . . Explosions 84 | . . . 84 . . . Melee . | . . . . . . . Knockbacks . | . . . . . . . Impact . | . . . . . . . Kinetic . | . . . . . . . Secondary . | . . . . . . . Self-Inflicted Damage 218 | . . . 171 . 47 . Shots 3 | . . . 2 . 1 . Rammed 6 | . 1 1 1 3 . . Targets Rammed 6 | . 1 1 1 3 . . Kicked . | . . . . . . . Crushed . | . . . . . . . Highest Temperature 73 | 18 73 . 9 2 9 . Average Temperature 19 | 9 23 . 3 2 6 . Received Heat Transfer 462 | . 228 . 153 81 . . Siege Activations . | . . . . . . . Robots Corrupted . | . . . . . . . Combat Hostiles . | . . . . . . . Parts Fried 2 | . . 1 1 . . . Impact Corruptions . | . . . . . . . Robots Melted . | . . . . . . . Combat Hostiles . | . . . . . . . Parts Melted . | . . . . . . . Heat Transferred 1073 | 111 962 . . . . . Parts Sabotaged . | . . . . . . . Parts Stolen . | . . . . . . . Parts Stripped . | . . . . . . . Power Chain Reactions 1 | . . . 1 . . . Missiles Intercepted . | . . . . . . . Alert | -11 -10 -10 -9 -9 -9 -8 ------- Run | Scr Mat Min Mat Min Exi Min Peak Influence 446 | 10 335 135 446 250 . 15 Initial 130 | . 6 46 . 130 . . Average 118 | 2 149 51 172 104 . 7 Maximum Alert Level 2 | . 1 . 2 1 . . Low Security (%) 79 | 100 85 100 56 75 . 100 Level 1 19 | . 15 . 38 24 . . Level 2 1 | . . . 4 . . . Level 3 . | . . . . . . . Level 4 . | . . . . . . . Level 5 . | . . . . . . . High Security . | . . . . . . . Max Security . | . . . . . . . Squads Dispatched 9 | . 3 . 6 . . . Investigation 3 | . 1 . 2 . . . Extermination . | . . . . . . . Reinforcement 6 | . 2 . 4 . . . Assault . | . . . . . . . Garrison . | . . . . . . . Intercept . | . . . . . . . Construction Impeded . | . . . . . . . Haulers Reinforced . | . . . . . . . Stealth | -11 -10 -10 -9 -9 -9 -8 --------- Run | Scr Mat Min Mat Min Exi Min Distress Signals 7 | . 2 2 3 . . . Communications Jammed . | . . . . . . . Distress Signals . | . . . . . . . Times Spotted 84 | . 26 10 31 10 5 2 Peak Tracking Total 9 | . 6 3 7 3 9 2 Tactical Retreats 8 | . 3 3 1 1 . . Traps | -11 -10 -10 -9 -9 -9 -8 ------- Run | Scr Mat Min Mat Min Exi Min Traps Triggered 3 | . 1 . 1 1 . . Indirectly 1 | . . . 1 . . . Trap Hack Attempts . | . . . . . . . Triggered . | . . . . . . . Disarmed . | . . . . . . . Reprogrammed . | . . . . . . . Reused . | . . . . . . . Traps Extracted . | . . . . . . . Installed . | . . . . . . . Triggered . | . . . . . . . Exploded 3 | . . . . . 3 . Machines | -11 -10 -10 -9 -9 -9 -8 ---------- Run | Scr Mat Min Mat Min Exi Min Machines Disabled 9 | . . . 3 . 6 . Max in Single Turn 2 | . . . 2 . 2 . Machines Sabotaged . | . . . . . . . Garrisons Compromised . | . . . . . . . Overloaded Fab Kills . | . . . . . . . Fab Network Shutdowns . | . . . . . . . Hacking | -11 -10 -10 -9 -9 -9 -8 --------- Run | Scr Mat Min Mat Min Exi Min Machines Accessed 12 | . 5 . 3 2 2 . Terminals 7 | . 4 . 2 1 . . Fabricators . | . . . . . . . Repair Stations . | . . . . . . . Recycling Units 2 | . 1 . 1 . . . Scanalyzers . | . . . . . . . Garrison Access . | . . . . . . . Total Hacks 45 | . 11 . 7 3 24 . Successful 38 | . 8 . 5 1 24 . Failed 6 | . 2 . 2 2 . . Catastrophic 3 | . . . 1 2 . . Database Lockouts 1 | . 1 . . . . . Manual 11 | . 4 . 4 2 1 . Terminals 18 | . 10 . 6 2 . . Fabricators . | . . . . . . . Repair Stations . | . . . . . . . Recycling Units 2 | . 1 . 1 . . . Scanalyzers . | . . . . . . . Garrison Access . | . . . . . . . Terminal Hacks 34 | . 6 . 3 1 24 . Record 23 | . . . . . 23 . Part Schematic 1 | . 1 . . . . . Open Door 1 | . . . . 1 . . Unreport Threat 1 | . . . 1 . . . Locate Traps 4 | . 3 . 1 . . . Hauler Manifests 2 | . 1 . 1 . . . Zone Layout 1 | . 1 . . . . . EX-Prototype ID Bank 1 | . . . . . 1 . Fabricator Hacks . | . . . . . . . Repair Station Hacks . | . . . . . . . Recycling Unit Hacks . | . . . . . . . Scanalyzer . | . . . . . . . Garrison Access Hacks . | . . . . . . . Unauthorized Hacks 4 | . 2 . 2 . . . Terminals 2 | . 1 . 1 . . . Track 2 | . 1 . 1 . . . Fabricators . | . . . . . . . Repair Stations . | . . . . . . . Recycling Units 2 | . 1 . 1 . . . Tunnel 2 | . 1 . 1 . . . Scanalyzers . | . . . . . . . Garrison Access . | . . . . . . . Data Cores Recovered . | . . . . . . . Used . | . . . . . . . Hacking Detections 5 | . 2 . 2 1 . . Full Trace Events . | . . . . . . . Feedback Events . | . . . . . . . Feedback Blocked . | . . . . . . . Robot Schematics Acquired . | . . . . . . . Robots Built . | . . . . . . . Matter . | . . . . . . . Time . | . . . . . . . Total Robot Build Rating . | . . . . . . . Part Schematics Acquired 1 | . 1 . . . . . Parts Built . | . . . . . . . Matter . | . . . . . . . Time . | . . . . . . . Total Part Build Rating . | . . . . . . . Parts Repaired . | . . . . . . . Time . | . . . . . . . Parts Recycled . | . . . . . . . Recycled Matter . | . . . . . . . Retrieved Matter . | . . . . . . . Retrieved Components . | . . . . . . . Parts Scanalyzed . | . . . . . . . Part Schematics Acquired . | . . . . . . . Parts Damaged . | . . . . . . . Bothacking | -11 -10 -10 -9 -9 -9 -8 ------------ Run | Scr Mat Min Mat Min Exi Min Used RIF Installer . | . . . . . . . Robots Hacked 1 | . . . . . 1 . Non-combat . | . . . . . . . Combat 1 | . . . . . 1 . Robot Hacks Applied 1 | . . . . . 1 . parse_system 1 | . . . . . 1 . Relay Couplers Released . | . . . . . . . Robots Rewired . | . . . . . . . Allies Hacked . | . . . . . . . Hacks Repelled . | . . . . . . . Allies | -11 -10 -10 -9 -9 -9 -8 -------- Run | Scr Mat Min Mat Min Exi Min Total Allies 3 | . . 3 . . . . Largest Group 3 | . . 3 . . . . Highest-Rated Group 40 | . . 40 . . . . Highest-Rated Ally 16 | . . 16 . . . . Total Orders . | . . . . . . . Ally Attacks 8 | . . 8 . . . . Total Damage 31 | . . 31 . . . . Kills . | . . . . . . . Allies Corrupted . | . . . . . . . Allies Melted . | . . . . . . . Intel | -11 -10 -10 -9 -9 -9 -8 ------- Run | Scr Mat Min Mat Min Exi Min Robot Analysis Total . | . . . . . . . Derelict Logs Recovered 5 | . . 2 . 3 . . Drone Launches . | . . . . . . . Drone Recoveries . | . . . . . . . Exploration | -11 -10 -10 -9 -9 -9 -8 ------------- Run | Scr Mat Min Mat Min Exi Min Turns Passed 7546 | 75 1160 1179 1302 1093 2704 33 Spaces Moved 3318 | 54 551 531 550 501 1129 2 Core 1 | 1 . . . . . . Treads 3231 | . 518 531 550 501 1129 2 Legs . | . . . . . . . Wheels 86 | 53 33 . . . . . Hover . | . . . . . . . Flight . | . . . . . . . Fastest Speed 50 | 50 90 180 180 180 180 220 Average Speed 192 | 84 165 180 186 199 216 220 Slowest Speed 220 | 90 180 180 200 200 220 220 Overloaded Moves . | . . . . . . . Propulsion Burnouts . | . . . . . . . Robots Hopped . | . . . . . . . Cave-ins Triggered . | . . . . . . . Exploration Rate (%) 59 | 4 92 98 60 90 71 2 Regions Visited 6 Branch Regions 4 Pre-discovered Areas 4 | . 1 1 1 . 1 . Known Exits Taken 1 | . . . 1 . . . Unknown Exits Taken 5 | 1 1 1 . 1 1 . Scrap Searched 3 | . . 1 . 2 . . Spaces Dug . | . . . . . . . Terrain Destroyed 105 | . . . 48 . 57 . Melee . | . . . . . . . Projectile . | . . . . . . . AOE 105 | . . . 48 . 57 . Terrain Rammed . | . . . . . . . Walls Destroyed . | . . . . . . . Machines Disabled . | . . . . . . . Actions | -11 -10 -10 -9 -9 -9 -8 --------- Run | Scr Mat Min Mat Min Exi Min Total 4070 | 74 709 730 721 547 1276 13 Wait 350 | . 79 179 61 13 18 . Move 3312 | 53 550 530 549 500 1128 2 Hop . | . . . . . . . Pick Up 75 | 7 16 4 20 1 27 . Fast Attach 15 | 7 3 . 3 1 1 . Attach 18 | 1 1 1 3 2 8 2 Detach 3 | . . . . 1 2 . Swap 27 | 1 3 1 11 2 9 . Drop 49 | 2 8 2 17 2 18 . Fire 214 | 3 48 12 56 22 64 9 Melee 1 | . . . . . 1 . Ram . | . . . . . . . Kick . | . . . . . . . Crush 6 | . 1 1 1 3 . . Escape Stasis . | . . . . . . . Rewire . | . . . . . . . Trap . | . . . . . . . Miscellaneous . | . . . . . . . Route ------- -11/Scrapyard -10/Materials (discovered 5 exits: *Mat x3 / [*Min x2]) -10/Mines (discovered 2 exits: *Mat x2) -9/Materials (discovered 3 exits: *Mat / *Min / [*Sto]) -9/Mines (discovered 3 exits: *Mat x2 / *Exi) -9/Exiles -8/Mines History --------- Turn | Location | Event 8 | -11/Scrapyard | Discovered new exit (range 15) 76 | -11/Scrapyard | Entered Materials 302 | -10/Materials | Build established: Mutant 429 | -10/Materials | Discovered new exit (range 10) 517 | -10/Materials | Discovered new exit (range 5) 620 | -10/Materials | Discovered new exit (range 12) 647 | -10/Materials | Central database locked down 665 | -10/Materials | Discovered new exit (range 11) 983 | -10/Materials | Discovered new exit (range 8) 1236 | -10/Materials | Entered Mines 1237 | -10/Mines | Assembled infested the area 1242 | -10/Mines | Assisted by a Guerilla fighting off Assembled 1602 | -10/Mines | Learned 2 Materials zone layouts 1637 | -10/Mines | Discovered new exit (range 5) 1803 | -10/Mines | Assisted by bots powering up and referring to "LRC-V3" 2293 | -10/Mines | Discovered new exit (range 11) 2311 | -10/Mines | Received a Rocket Launcher from a helpful Derelict 2339 | -10/Mines | Learned location of Recycling (-9) 2415 | -10/Mines | Entered Materials 2415 | -9/Materials | Evolved 2 slots: Utility x2 2416 | -9/Materials | Identified exit to Mines 2790 | -9/Materials | Discovered new exit (range 16) 3264 | -9/Materials | Destroyed 8 combat bots 3374 | -9/Materials | Discovered new exit (range 3) 3628 | -9/Materials | Build established: Hauler-Mutant 3717 | -9/Materials | Entered Mines 3778 | -9/Mines | Identified exit to Materials 3838 | -9/Mines | Learned location of 1 exit from Materials 4025 | -9/Mines | Met a Derelict who couldn't figure out how to use a Trap Extractor 4218 | -9/Mines | Discovered exit to Materials (range 6) 4256 | -9/Mines | Deemed a non-threat by the Exiles lab entrance 4258 | -9/Mines | Discovered new exit (range 5) 4810 | -9/Mines | Entered Exiles 4866 | -9/Exiles | Met 8R-AWN 4900 | -9/Exiles | Met EX-HEX 4990 | -9/Exiles | Met EX-DEC 5144 | -9/Exiles | Discovered new exit (range 10) 5312 | -9/Exiles | Learned location of Zion (-6) 5802 | -9/Exiles | Met EX-BIN 6386 | -9/Exiles | Aligned with FarCom system 6388 | -9/Exiles | Given EX-Vault access code 6441 | -9/Exiles | Opened EX-Vault 6489 | -9/Exiles | Warned to stay clear of 0b10 Research branches 7068 | -9/Exiles | Attacked by the Exiles 7253 | -9/Exiles | Core integrity fell below 50% 7323 | -9/Exiles | Destroyed 8R-AWN 7330 | -9/Exiles | Lost 6 parts (1p2n1u2w) 7514 | -9/Exiles | Entered Mines 7527 | -8/Mines | 12-ASH came to Exiles' defense 7533 | -8/Mines | Core integrity fell below 20% 7547 | -8/Mines | Destroyed by 12-ASH with 12-ASH's Boomstick Last Messages --------------- 07485_ System corrupted: Component data lost. 07506_ Acquired Imp. Trap Extractor. 07509_ Acquired Lrg. Storage Unit. 07510_ Extracted 100 matter. 07513_ Acquired Med. Matter Pod. A strange signal echoes through the mines. LOCATION=UNKNOWN GOAL=ESCAPE 07515_ Slug penetrates Wall. 07516_ >MZ5J&F WH,ZXUMRAJC4YKIE:E/ 07520_ Penetrated by Slug. 07527_ 12-ASH: "I came as fast as I could... Wait, it was you!" 07529_ Penetrated by Slug. 07530_ Lgt. Armor Plating destroyed. 07532_ Penetrated by Slug. 07532_ Shotgun destroyed. 07535_ Penetrated by Slug. 07538_ Shotgun destroyed. 07539_ Lgt. Treads destroyed. 07541_ Penetrated by Slug. Map ----- +----------------------------------------------------+ | | | | | | | | | | | | | | | ??????????????????????????????????????????????? | | ??????????????????????????????????????????????? | | ??????????????????????????????????????????????? | | ??????????????????????????????????????????????? | | ??????????????????????????????????????????????? | | ??????????????????????????????????????????????? | | ??????????????????????????????????????????????? | | ??????????????????????????????????????????????? | | ??????????????????????????????????????????????? | | ??????????????????????????????????????????????? | | ??????????????????????????????????????????????? | | ??????????????????????#???????????????????????? | | ??????????????????????# ??????????????????????? | | ??????????????????????# ??????????????????????? | | ????????????????????### ??????????????????????? | | ????????????????????? ??????????????????????? | | ??????????????????????# #?????????????????????? | | ????????????????????### ;##???????????????????? | | ????????????????????# g@#???????????????????? | | ????????????????????# #???????????????????? | | ????????????????????# #???????????????????? | | ????????????????????# h#???????????????????? | | ????????????????????# #???????????????????? | | ????????????????????##;####???????????????????? | | ?????????????????????##???????????????????????? | | ??????????????????????????????????????????????? | | ??????????????????????????????????????????????? | | ??????????????????????????????????????????????? | | ??????????????????????????????????????????????? | | ??????????????????????????????????????????????? | | ??????????????????????????????????????????????? | | ??????????????????????????????????????????????? | | ??????????????????????????????????????????????? | | ??????????????????????????????????????????????? | | ??????????????????????????????????????????????? | | ??????????????????????????????????????????????? | | ??????????????????????????????????????????????? | | ??????????????????????????????????????????????? | | ??????????????????????????????????????????????? | | ??????????????????????????????????????????????? | | ??????????????????????????????????????????????? | | ??????????????????????????????????????????????? | | ??????????????????????????????????????????????? | +----------------------------------------------------+ Best States ------------- Heat Dissipation 28 Energy Generation 14 Energy Capacity 280 Matter Stores 300 Matter Capacity 300 Sight Range 16 Terrain Scan Range 16 Terrain Scan Density 10 Armor Coverage 225 Evasion (%) 44 Recoil Reduction 2 Item Schematics ----------------- Lrg. Storage Unit | -10/Materials | Hacked Robot Schematics ------------------ None Fabricated ------------ Nothing Alien Tech Used ----------------- None Achievements -------------- None Challenges ------------ None Game ------ Seed ArmorDerelictImmobilizer Manual? 0 Play Time 00:33:28 Cumulative 286.6 hours Start 2021.09.02 @ 14:34:05 End 2021.09.02 @ 15:27:10 Sessions 2 Manual Loads 0 Difficulty Rogue Special Mode None Game No. 293 Rogue 293 Adventurer 0 Explorer 0 Win Type - Total 4 Types 4/0/0/0/0/0/0/0/0 Lore% 64 Gallery% 79 Achievement% 61 Wizard Run 0 Options --------- ASCII 0 Keyboard 0 Movement Numpad Keybinds 0 Fullscreen 2 Font 24/Terminus Map View 76x50 Tactical HUD 1 Map Filters NONE Filters NONE Steam 1 RUN: 67e358c7-77ee-499e-8397-77728f0ad4d0